bitfinex/quotes_SOLUSD_20251202
["timestamp","ask_amount","ask_price","bid_price","bid_amount"]
[1764662856685,4.73253358,127.0,126.96,7.8762298]
[1764662856996,4.73253358,127.0,126.98,8.68]
[1764662857201,0.71,126.99,126.98,8.68]
[1764662857376,4.73253358,127.0,126.98,8.68]
[1764662860020,11.89677546,127.0,126.98,8.68]
[1764662860204,0.71,126.99,126.98,8.68]
[1764662864401,0.71,126.99,126.96,8.58607459]
[1764662864402,0.71,126.99,126.96,7.87607459]
[1764662864583,0.71,126.99,126.97,8.68]
[1764662864783,0.71,126.99,126.95,7.8768946]
[1764662864784,106.62253358,126.98,126.95,7.8768946]
[1764662864982,106.62253358,126.98,126.96,8.68]
[1764662864983,107.29253358,126.98,126.96,8.68]
[1764662865408,0.67,126.97,126.96,8.68]
[1764662867012,0.67,126.97,126.91,20.3586678]
[1764662867013,12.56840977,126.97,126.91,20.3586678]
[1764662867187,4.02253358,126.95,126.92,8.68]
[1764662867587,4.69253358,126.95,126.92,8.68]
[1764662867787,4.69253358,126.95,126.92,9.34]
[1764662868291,4.69253358,126.95,126.92,17.21897888]
[1764662868888,0.67,126.94,126.92,16.55897888]
[1764662870387,0.67,126.94,126.92,8.68]
[1764662871309,0.67,126.94,126.92,16.55895812]
[1764662871516,0.67,126.95,126.92,9.34]
[1764662873512,12.56979128,126.95,126.92,9.34]
[1764662873711,0.67,126.94,126.92,8.68]
[1764662873911,102.6,126.93,126.92,8.68]
[1764662875009,102.6,126.93,126.89,16.308864]
[1764662875310,102.6,126.93,126.91,11.90157671]
[1764662875518,102.6,126.93,126.91,7.87904313]
[1764662875688,102.6,126.93,126.91,8.53904313]
[1764662876610,103.27,126.93,126.9,8.68]
[1764662876913,0.67,126.92,126.9,8.68]
[1764662877114,114.50105581,126.93,126.9,9.34]
[1764662877320,115.17105581,126.93,126.9,9.34]
[1764662877687,111.14852223,126.93,126.9,9.34]
[1764662877911,115.17105581,126.93,126.9,9.34]
[1764662878118,103.27,126.93,126.9,9.34]
[1764662878417,111.1484337,126.93,126.9,9.34]
[1764662878720,103.27,126.93,126.9,9.34]
[1764662879091,111.1485219,126.93,126.9,9.34]
[1764662880219,102.6,126.92,126.9,9.34]
[1764662881113,103.27,126.92,126.9,9.34]
[1764662882587,102.6,126.92,126.9,9.34]
[1764662883708,103.27,126.92,126.9,9.34]
[1764662883919,103.27,126.92,126.9,8.68]
[1764662884286,0.67,126.91,126.9,8.68]
[1764662884817,107.29253358,126.92,126.9,8.68]
[1764662885008,103.27,126.92,126.9,8.68]
[1764662885308,111.14904504,126.92,126.9,8.68]
[1764662885812,103.27,126.91,126.9,8.68]
[1764662887399,102.6,126.91,126.9,8.68]
[1764662890802,102.6,126.91,126.9,17.22022064]
[1764662891113,102.6,126.91,126.9,9.34]
[1764662894521,102.6,126.91,126.9,8.68]
[1764662895024,102.6,126.91,126.9,9.33]
[1764662895899,102.6,126.91,126.9,21.23275422]
[1764662896300,111.16732147,126.95,126.9,21.23275422]
[1764662896501,102.6,126.95,126.92,11.90122948]
[1764662896723,102.6,126.95,126.93,8.68]
[1764662896928,103.29,126.95,126.93,8.68]
[1764662897701,107.31253358,126.95,126.93,8.68]
[1764662898200,0.69,126.94,126.93,8.68]
[1764662898406,4.71253358,126.94,126.93,8.68]
[1764662898828,0.69,126.94,126.93,8.68]
[1764662899619,115.18969153,126.95,126.93,8.68]
[1764662900003,115.18969153,126.95,126.92,8.5289195]
[1764662900323,114.49969153,126.95,126.93,8.68]
[1764662900522,0.69,126.94,126.93,8.68]
[1764662903430,11.14513254,126.94,126.91,8.68]
[1764662903626,2.57739503,126.93,126.91,8.68]
[1764662903808,3.26739503,126.93,126.91,8.68]
[1764662905429,2.57739503,126.93,126.9,7.88009418]
[1764662905730,0.69,126.92,126.91,8.68]
[1764662905918,0.69,126.92,126.9,8.68]
[1764662905919,3.26739503,126.92,126.9,8.68]
[1764662906417,0.69,126.91,126.9,8.68]
[1764662906825,103.29,126.91,126.9,8.68]
[1764662907512,102.6,126.91,126.9,8.68]
[1764662908631,103.29,126.91,126.9,8.68]
[1764662909203,113.74739516,126.91,126.88,69.17308378]
[1764662909402,105.86739503,126.9,126.89,8.68]
[1764662910643,11.14761567,126.9,126.88,69.17308378]
[1764662910856,3.26739503,126.89,126.88,69.17308378]
[1764662911302,105.86739503,126.89,126.88,69.17308378]
[1764662912231,103.29,126.89,126.88,69.17308378]
[1764662912558,113.7482367,126.89,126.88,69.17308378]
[1764662913004,11.1482367,126.89,126.88,69.17308378]
[1764662914510,2.57739503,126.89,126.88,69.17308378]
[1764662914819,3.22739503,126.89,126.88,69.17308378]
[1764662915736,19.70003549,126.91,126.88,69.17308378]
[1764662915737,0.65,126.91,126.88,69.17308378]
[1764662915950,3.22739503,126.91,126.88,78.56308378]
[1764662916444,0.65,126.9,126.88,77.85308378]
[1764662916813,11.10775861,126.9,126.88,77.85308378]
[1764662918539,3.22739503,126.89,126.88,77.85308378]
[1764662919537,11.1082367,126.89,126.88,77.85308378]
[1764662920347,11.1082367,126.89,126.88,69.17308378]
[1764662920651,11.1082367,126.89,126.88,77.85308378]
[1764662921022,11.1082367,126.89,126.88,69.17308378]
[1764662931027,24.37387513,126.93,126.88,81.09047881]
[1764662931369,3.25739503,126.92,126.88,81.09047881]
[1764662931571,2.57739503,126.91,126.88,78.51308378]
[1764662931867,2.57739503,126.9,126.88,77.85308378]
[1764662932043,2.57739503,126.89,126.88,69.17308378]
[1764662932361,3.25739503,126.89,126.88,69.17308378]
[1764662933969,11.1382367,126.89,126.88,69.17308378]
[1764662939473,10.4582367,126.89,126.88,69.17308378]
[1764662940066,11.1382367,126.89,126.88,69.17308378]
[1764662941466,34.83211183,126.89,126.88,69.17308378]
[1764662945964,31.5747168,126.89,126.88,69.17308378]
[1764662946180,11.1382367,126.89,126.88,69.17308378]
[1764662946466,34.83211183,126.89,126.88,69.17308378]
[1764662948767,32.2547168,126.89,126.88,69.17308378]
[1764662948968,34.83211183,126.89,126.88,69.17308378]
[1764662949769,32.2547168,126.89,126.88,69.17308378]
[1764662949946,10.4582367,126.89,126.88,69.17308378]
[1764662950146,11.1382367,126.89,126.88,69.17308378]
[1764662951348,34.83024064,126.89,126.88,69.17308378]
[1764662953074,8.56084167,126.89,126.88,69.17308378]
[1764662953267,11.1382367,126.89,126.88,69.17308378]
[1764662956062,10.4582367,126.89,126.88,69.17308378]
[1764662956469,11.1482367,126.89,126.88,69.17308378]
[1764662957778,3.26739503,126.89,126.88,69.17308378]
[1764662958281,11.1482367,126.89,126.88,69.17308378]
[1764662960272,10.4582367,126.89,126.88,69.17308378]
[1764662960559,11.1482367,126.89,126.88,69.17308378]
[1764662961571,19.8282367,126.89,126.88,69.17308378]
[1764662962076,43.52398331,126.89,126.88,69.17308378]
[1764662962284,59.83284731,126.89,126.88,69.17308378]
[1764662962465,61.28872926,126.89,126.88,69.17308378]
[1764662965066,8.80994492,126.88,126.86,0.1]
[1764662965266,29.02214098,126.87,126.86,0.1]
[1764662965466,29.71214098,126.87,126.86,0.1]
[1764662965663,135.47182343,126.87,126.86,0.1]
[1764662966564,143.35390745,126.87,126.86,0.1]
[1764662967686,49.56385237,126.87,126.86,0.1]
[1764662968286,32.07390745,126.87,126.86,0.1]
[1764662968465,40.75390745,126.87,126.86,0.1]
[1764662972097,49.56385237,126.87,126.86,0.1]
[1764662973269,40.88385237,126.87,126.86,0.1]
[1764662973472,49.56385237,126.87,126.86,0.1]
[1764662973671,102.5,126.85,126.83,0.1]
[1764662973972,115.21327698,126.84,126.83,0.1]
[1764662974781,123.09946593,126.84,126.83,0.1]
[1764662975174,123.79946593,126.84,126.83,0.1]
[1764662975580,130.98341421,126.84,126.83,0.1]
[1764662975781,131.68341421,126.84,126.83,0.1]
[1764662976268,130.98341421,126.84,126.83,0.1]
[1764662976789,119.06618895,126.84,126.83,0.1]
[1764662976997,130.98341421,126.84,126.83,0.1]
[1764662977792,28.48341421,126.84,126.83,0.1]
[1764662978292,20.59946593,126.84,126.83,0.1]
[1764662978673,21.29722526,126.84,126.83,0.1]
[1764662978874,29.18297982,126.84,126.83,0.1]
[1764662979600,33.2162568,126.84,126.83,0.1]
[1764662979967,16.46970284,126.84,126.83,0.1]
[1764662980171,29.18297982,126.84,126.83,0.1]
[1764662982470,33.2162568,126.84,126.83,0.1]
[1764662983299,25.14970284,126.84,126.83,0.1]
[1764662983492,29.18297982,126.84,126.83,0.1]
[1764662985075,33.2162568,126.84,126.83,0.1]
[1764662988099,24.5362568,126.84,126.83,0.1]
[1764662988290,33.2162568,126.84,126.83,0.1]
[1764662989921,24.5362568,126.84,126.83,0.1]
[1764662990215,33.2162568,126.84,126.83,0.1]
[1764662991413,24.5362568,126.84,126.83,0.1]
[1764662991614,33.2162568,126.84,126.83,0.1]
[1764662991784,25.33050224,126.84,126.83,0.1]
[1764662992512,16.65050224,126.84,126.83,0.1]
[1764662992696,25.33050224,126.84,126.83,0.1]
[1764662996717,24.63050224,126.84,126.83,0.1]
[1764662996923,21.30722526,126.84,126.83,0.1]
[1764662997830,12.62722526,126.84,126.83,0.1]
[1764662998024,25.34050224,126.84,126.83,0.1]
[1764663001213,34.15044716,126.84,126.83,0.1]
[1764663001400,16.308864,126.81,126.79,0.69]
[1764663001606,4.03327698,126.8,126.79,0.69]
[1764663002199,4.03327698,126.8,126.78,74.84329768]
[1764663002401,4.03327698,126.79,126.78,74.15329768]
[1764663002920,24.988864,126.81,126.78,74.84329768]
[1764663002921,4.03327698,126.8,126.78,74.84329768]
[1764663003101,4.03327698,126.8,126.79,0.69]
[1764663003902,24.988864,126.81,126.79,0.69]
[1764663004305,20.34214098,126.81,126.79,0.69]
[1764663005012,12.71327698,126.82,126.79,8.57648094]
[1764663005324,4.03327698,126.8,126.79,8.57648094]
[1764663005504,4.03327698,126.81,126.79,7.88648094]
[1764663006099,4.03327698,126.81,126.8,0.69]
[1764663006316,4.03327698,126.82,126.8,0.69]
[1764663007017,4.03327698,126.81,126.79,7.88648094]
[1764663007217,4.03327698,126.8,126.79,8.57648094]
[1764663007502,12.71327698,126.81,126.79,7.88648094]
[1764663007710,12.71327698,126.81,126.8,0.69]
[1764663013941,8.68,126.81,126.8,0.69]
[1764663014230,12.71327698,126.81,126.8,0.69]
[1764663014730,16.308864,126.85,126.8,12.60971192]
[1764663014936,4.03327698,126.84,126.8,12.60971192]
[1764663015120,4.03327698,126.83,126.81,0.72]
[1764663018328,4.03327698,126.84,126.81,0.72]
[1764663019435,102.6,126.83,126.81,0.72]
[1764663019938,102.6,126.83,126.81,8.60547052]
[1764663020511,102.6,126.83,126.82,0.72]
[1764663025345,114.57193834,126.83,126.79,0.72]
[1764663025638,2.58193834,126.8,126.78,74.15329768]
[1764663025827,105.18193834,126.79,126.78,74.15329768]
[1764663027613,105.89193834,126.79,126.78,74.15329768]
[1764663030318,105.18193834,126.79,126.78,74.15329768]
[1764663030525,105.89193834,126.79,126.78,74.15329768]
[1764663031243,3.29193834,126.79,126.78,74.15329768]
[1764663033526,2.58193834,126.79,126.78,74.15329768]
[1764663034140,3.23193834,126.79,126.78,74.15329768]
[1764663035327,2.58193834,126.79,126.78,74.15329768]
[1764663036649,3.23193834,126.79,126.78,74.15329768]
[1764663039136,8.68,126.8,126.78,74.15329768]
[1764663039332,3.23193834,126.79,126.78,74.15329768]
[1764663041349,2.58193834,126.79,126.78,74.15329768]
[1764663041559,19.14838496,126.8,126.78,74.86329768]
[1764663041738,19.83838496,126.8,126.78,74.86329768]
[1764663042057,0.69,126.79,126.78,74.15329768]
[1764663042255,11.15899567,126.79,126.78,74.15329768]
[1764663042460,8.68,126.79,126.78,74.86329768]
[1764663042635,11.26193834,126.8,126.78,74.86329768]
[1764663042834,11.95193834,126.8,126.78,74.86329768]
[1764663043246,11.95193834,126.8,126.78,74.15329768]
[1764663044153,3.27193834,126.8,126.78,74.15329768]
[1764663044360,11.95193834,126.8,126.78,74.86329768]
[1764663044654,3.27193834,126.8,126.78,74.86329768]
[1764663044854,11.95193834,126.8,126.78,74.86329768]
[1764663045057,10.46828755,126.81,126.79,0.71]
[1764663045274,19.14828755,126.81,126.79,0.71]
[1764663045839,19.83828755,126.81,126.79,0.71]
[1764663046052,19.83828755,126.81,126.78,74.86329768]
[1764663046568,3.27193834,126.8,126.78,74.86329768]
[1764663047153,3.27193834,126.8,126.78,74.15329768]
[1764663048568,2.58193834,126.8,126.78,74.15329768]
[1764663048741,2.58193834,126.8,126.78,74.86329768]
[1764663049847,3.27193834,126.8,126.78,74.86329768]
[1764663050364,3.27193834,126.8,126.78,74.15329768]
[1764663050570,10.46899567,126.79,126.78,74.15329768]
[1764663051366,2.58193834,126.79,126.78,74.15329768]
[1764663057991,19.8388315,126.8,126.78,74.15329768]
[1764663058152,2.58193834,126.79,126.78,74.15329768]
[1764663059386,3.27193834,126.79,126.78,74.15329768]
[1764663059555,2.58193834,126.79,126.78,74.15329768]
[1764663059747,3.27193834,126.79,126.78,74.15329768]
[1764663060250,19.71505346,126.81,126.78,74.15329768]
[1764663060471,8.68,126.8,126.78,74.86329768]
[1764663061077,11.26193834,126.8,126.78,74.86329768]
[1764663061669,3.27193834,126.79,126.78,74.15329768]
[1764663061866,2.58193834,126.79,126.78,74.15329768]
[1764663062575,2.58193834,126.8,126.78,74.86329768]
[1764663063878,7.88533799,126.82,126.79,0.71]
[1764663064081,19.83727633,126.82,126.79,0.71]
[1764663064381,17.25533799,126.82,126.79,0.71]
[1764663064780,19.83727633,126.82,126.79,0.71]
[1764663064959,0.69,126.81,126.79,0.71]
[1764663065457,3.27193834,126.81,126.79,0.71]
[1764663065854,2.58193834,126.8,126.78,82.04057281]
[1764663066272,3.27193834,126.79,126.78,74.15329768]
[1764663068083,2.58193834,126.79,126.78,74.15329768]
[1764663069565,127.77668257,126.83,126.78,74.86329768]
[1764663069566,11.95193834,126.81,126.78,74.86329768]
[1764663069965,0.69,126.8,126.78,74.86329768]
[1764663070203,3.27193834,126.8,126.78,74.15329768]
[1764663072187,11.15839737,126.8,126.78,74.15329768]
[1764663073196,0.66,126.79,126.78,74.15329768]
[1764663073376,11.12839737,126.8,126.78,74.15329768]
[1764663073567,0.66,126.79,126.78,74.15329768]
[1764663074478,3.24193834,126.79,126.78,74.15329768]
[1764663075793,2.58193834,126.79,126.78,74.15329768]
[1764663078506,2.58193834,126.79,126.78,74.83329768]
[1764663078961,2.58193834,126.79,126.78,74.15329768]
[1764663079163,3.24193834,126.79,126.78,74.15329768]
[1764663079372,11.12899567,126.79,126.78,74.15329768]
[1764663083279,19.80899567,126.79,126.78,74.15329768]
[1764663083480,8.54705733,126.79,126.78,74.15329768]
[1764663083706,3.24193834,126.79,126.78,74.15329768]
[1764663084502,4.69833097,126.79,126.78,74.15329768]
[1764663085577,21.2653883,126.79,126.78,74.15329768]
[1764663089677,7.88705733,126.79,126.78,74.15329768]
[1764663089881,7.88705733,126.79,126.78,74.83329768]
[1764663090097,20.60503882,126.8,126.78,74.83329768]
[1764663090312,21.26503882,126.8,126.78,74.83329768]
[1764663092917,11.9253883,126.79,126.78,74.83329768]
[1764663093508,17.22645199,126.8,126.78,74.83329768]
[1764663093810,4.03833097,126.79,126.78,74.15329768]
[1764663095816,11.9253883,126.79,126.78,74.15329768]
[1764663096220,12.5853883,126.79,126.78,74.15329768]
[1764663098101,11.9253883,126.79,126.78,74.15329768]
[1764663099202,4.03833097,126.79,126.78,74.15329768]
[1764663100327,11.9253883,126.79,126.78,74.15329768]
[1764663100734,7.88705733,126.79,126.78,74.15329768]
[1764663101030,11.9253883,126.79,126.78,74.15329768]
[1764663104122,4.03833097,126.8,126.78,74.86329768]
[1764663104331,20.60459921,126.81,126.79,0.71]
[1764663105313,11.92459921,126.81,126.79,0.71]
[1764663106630,4.75833097,126.8,126.78,74.15329768]
[1764663106808,4.03833097,126.79,126.78,74.15329768]
[1764663107211,4.03833097,126.79,126.78,74.86329768]
[1764663107410,4.03833097,126.8,126.78,74.86329768]
[1764663108326,4.75833097,126.8,126.78,74.86329768]
[1764663108528,7.88626824,126.81,126.78,74.86329768]
[1764663108529,4.03833097,126.79,126.78,74.86329768]
[1764663110311,7.88648973,126.8,126.78,74.86329768]
[1764663110512,11.9248207,126.8,126.78,74.86329768]
[1764663110930,8.5661111,126.81,126.78,74.86329768]
[1764663111134,4.03833097,126.8,126.78,74.86329768]
[1764663115740,4.71833097,126.8,126.78,74.86329768]
[1764663115924,4.03833097,126.8,126.78,74.86329768]
[1764663116538,4.03833097,126.8,126.79,0.71]
[1764663116921,4.03833097,126.8,126.78,82.04067281]
[1764663117113,4.03833097,126.8,126.78,82.75067281]
[1764663118640,4.03833097,126.8,126.78,74.86329768]
[1764663119836,4.03833097,126.8,126.78,82.75096029]
[1764663120036,4.71833097,126.81,126.78,82.75096029]
[1764663120238,12.60418571,126.81,126.78,82.75096029]
[1764663121341,4.03833097,126.8,126.79,0.71]
[1764663121544,4.03833097,126.8,126.78,82.75096029]
[1764663121733,4.03833097,126.8,126.79,0.71]
[1764663121928,8.56585474,126.81,126.79,0.71]
[1764663122227,4.03833097,126.8,126.79,0.71]
[1764663122427,12.605,126.8,126.78,74.15329768]
[1764663122622,4.03833097,126.79,126.78,74.15329768]
[1764663123245,4.71833097,126.79,126.78,74.15329768]
[1764663124210,13.39833097,126.79,126.78,74.15329768]
[1764663124415,21.2853883,126.79,126.78,74.15329768]
[1764663125446,44.99986598,126.79,126.78,74.15329768]
[1764663126031,12.6053883,126.79,126.78,74.15329768]
[1764663126342,21.2853883,126.79,126.78,74.15329768]
[1764663127340,16.308864,126.76,126.75,0.1]
[1764663127546,37.83713989,126.76,126.75,0.1]
[1764663127711,48.52925067,126.76,126.75,0.1]
[1764663127912,13.26479115,126.76,126.75,0.81]
[1764663128118,4.03833097,126.76,126.75,0.81]
[1764663128634,11.92725492,126.76,126.75,0.81]
[1764663128840,11.92725492,126.76,126.75,0.1]
[1764663129146,11.92725492,126.76,126.75,0.81]
[1764663130026,11.92725492,126.76,126.75,0.1]
[1764663130227,17.15892395,126.76,126.75,0.1]
[1764663130540,30.00719984,126.76,126.75,0.1]
[1764663135150,102.4,126.73,126.72,0.69]
[1764663135353,4.03833097,126.73,126.72,0.69]
[1764663136547,27.7621853,126.73,126.71,0.69]
[1764663136953,4.03833097,126.72,126.71,0.69]
[1764663137253,7.89265982,126.7,126.68,79.92351159]
[1764663137433,4.03833097,126.69,126.68,79.92351159]
[1764663137630,4.03833097,126.69,126.68,79.23351159]
[1764663137829,11.93099079,126.7,126.68,79.23351159]
[1764663138050,7.89265982,126.7,126.68,74.23351159]
[1764663138353,7.89265982,126.7,126.69,0.69]
[1764663138550,23.72948388,126.71,126.69,0.69]
[1764663138737,8.68,126.72,126.69,0.69]
[1764663138937,102.6,126.71,126.69,0.69]
[1764663139329,110.49205117,126.71,126.69,0.69]
[1764663139543,106.63833097,126.7,126.69,0.69]
[1764663139857,106.63833097,126.7,126.68,74.92351159]
[1764663140043,4.03833097,126.69,126.68,74.92351159]
[1764663140237,4.03833097,126.69,126.68,74.23351159]
[1764663140549,4.03833097,126.69,126.68,74.92351159]
[1764663143444,26.17660686,126.68,126.67,1e-08]
[1764663143639,29.15713989,126.68,126.67,1e-08]
[1764663143842,37.85713989,126.68,126.67,1e-08]
[1764663144243,34.40880892,126.68,126.67,1e-08]
[1764663144461,38.44713989,126.68,126.67,1e-08]
[1764663144958,46.34104579,126.68,126.67,1e-08]
[1764663146446,44.89269162,126.68,126.67,1e-08]
[1764663147161,113.08512916,126.66,126.65,0.1]
[1764663147452,19.18512917,126.66,126.65,0.1]
[1764663147837,31.8315377,126.66,126.65,0.1]
[1764663148037,42.1914449,126.66,126.65,0.1]
[1764663148763,31.8315377,126.66,126.65,0.1]
[1764663149163,32.4215377,126.66,126.65,0.1]
[1764663149355,31.8315377,126.66,126.65,0.1]
[1764663150169,31.8315377,126.66,126.65,0.79]
[1764663150364,31.8315377,126.66,126.65,0.1]
[1764663150568,31.8315377,126.66,126.65,0.79]
[1764663151072,10.4846149,126.67,126.65,0.79]
[1764663152965,102.6,126.66,126.65,0.79]
[1764663153868,105.1899768,126.66,126.65,0.79]
[1764663154065,102.6,126.66,126.65,0.79]
[1764663154272,105.1899768,126.66,126.65,0.79]
[1764663155277,2.5899768,126.67,126.65,0.79]
[1764663155442,24.4925011,126.68,126.65,0.79]
[1764663155641,2.5899768,126.67,126.65,0.79]
[1764663156075,11.2899768,126.68,126.65,8.68558089]
[1764663156244,8.7,126.68,126.65,0.79]
[1764663156446,11.2899768,126.68,126.66,0.7]
[1764663156654,16.59406032,126.68,126.66,0.7]
[1764663156858,2.5899768,126.67,126.66,0.7]
[1764663157867,8.7,126.68,126.66,0.7]
[1764663158070,11.2899768,126.68,126.66,0.7]
[1764663158370,19.18392442,126.68,126.66,0.7]
[1764663159861,2.5899768,126.67,126.66,0.7]
[1764663160382,10.48392442,126.68,126.66,0.7]
[1764663161954,102.6,126.67,126.66,0.7]
[1764663163587,105.1899768,126.67,126.66,0.7]
[1764663165964,102.6,126.67,126.66,0.7]
[1764663167809,10.48392442,126.68,126.66,0.7]
[1764663168191,18.38023104,126.68,126.66,0.7]
[1764663168365,10.48392442,126.68,126.66,0.7]
[1764663168688,2.5899768,126.67,126.66,0.7]
[1764663168895,15.79025424,126.68,126.66,0.7]
[1764663169062,2.5899768,126.67,126.66,0.7]
[1764663169458,2.5899768,126.67,126.65,0.1]
[1764663169664,2.5899768,126.66,126.65,0.76]
[1764663173663,10.48512917,126.66,126.65,0.1]
[1764663174298,10.48512917,126.66,126.65,0.76]
[1764663175002,30.13503637,126.66,126.65,0.1]
[1764663175170,38.94498129,126.66,126.65,0.1]
[1764663176201,30.13503637,126.66,126.65,0.1]
[1764663176504,38.94498129,126.66,126.65,0.1]
[1764663177187,25.11880892,126.63,126.62,4.74898556]
[1764663177384,36.40878572,126.63,126.62,4.74898556]
[1764663177582,25.008864,126.63,126.62,4.74898556]
[1764663177800,51.34334988,126.63,126.62,4.74898556]
[1764663177987,51.93334988,126.63,126.62,4.74898556]
[1764663178572,51.34334988,126.63,126.62,4.74898556]
[1764663178878,42.64334988,126.63,126.62,4.74898556]
[1764663179079,50.5403727,126.63,126.62,5.40898556]
[1764663179473,50.5403727,126.63,126.62,4.74898556]
[1764663180597,31.6415319,126.63,126.62,5.40898556]
[1764663180799,34.2315087,126.63,126.62,5.40898556]
[1764663181001,34.2315087,126.63,126.62,4.74898556]
[1764663181199,34.2315087,126.63,126.62,5.40898556]
[1764663181379,34.2315087,126.63,126.62,4.74898556]
[1764663181697,34.8215087,126.63,126.62,4.74898556]
[1764663182582,105.74968955,126.61,126.59,0.66]
[1764663182791,100.44099124,126.6,126.59,0.66]
[1764663184899,97.85101444,126.6,126.59,0.66]
[1764663185703,100.44099124,126.6,126.59,0.66]
[1764663186194,97.85101444,126.6,126.59,0.66]
[1764663186511,100.44099124,126.6,126.59,0.66]
[1764663187102,100.44099124,126.6,126.58,84.31372549]
[1764663187406,100.44099124,126.6,126.59,0.66]
[1764663187902,108.33988539,126.6,126.59,0.66]
[1764663188083,105.74990859,126.6,126.59,0.66]
[1764663188802,7.89889415,126.6,126.59,0.66]
[1764663189576,10.48846124,126.61,126.59,0.66]
[1764663189779,2.5899768,126.61,126.59,0.66]
[1764663190481,40.34432759,126.62,126.59,0.66]
[1764663190799,2.5899768,126.61,126.59,0.66]
[1764663191783,16.59779891,126.62,126.59,0.66]
[1764663191996,23.74450908,126.63,126.59,0.66]
[1764663192199,17.1839059,126.68,126.62,2.5899768]
[1764663192406,2.5899768,126.67,126.63,0.66]
[1764663192585,2.5899768,126.66,126.63,0.66]
[1764663194103,2.5899768,126.66,126.63,8.55699491]
[1764663194602,2.5899768,126.66,126.64,0.66]
[1764663196912,10.48478258,126.67,126.64,0.66]
[1764663197514,105.1899768,126.66,126.64,0.66]
[1764663199014,102.6,126.66,126.64,0.66]
[1764663199677,102.6,126.66,126.64,11.14610026]
[1764663200109,102.6,126.66,126.65,0.66]
[1764663200308,19.18388599,126.68,126.65,0.66]
[1764663200999,2.5899768,126.67,126.65,0.66]
[1764663201202,2.5899768,126.66,126.65,0.66]
[1764663201799,2.5899768,126.67,126.65,0.66]
[1764663202406,10.48465337,126.67,126.65,0.66]
[1764663203297,16.5939544,126.68,126.65,0.66]
[1764663203519,19.1839312,126.68,126.65,0.66]
[1764663204409,16.5939544,126.68,126.65,0.66]
[1764663204817,19.1839312,126.68,126.65,0.66]
[1764663206709,7.8939544,126.68,126.65,0.66]
[1764663207017,2.5899768,126.68,126.65,8.55537043]
[1764663207387,2.5899768,126.68,126.66,0.66]
[1764663207608,10.4833023,126.69,126.66,0.66]
[1764663208409,11.93747198,126.69,126.66,0.66]
[1764663211214,23.87698889,126.69,126.66,0.66]
[1764663212116,4.04414648,126.68,126.66,0.66]
[1764663212323,102.6,126.67,126.66,0.66]
[1764663212922,102.6,126.67,126.66,12.59929885]
[1764663215016,102.6,126.67,126.66,8.55515237]
[1764663215221,102.6,126.67,126.66,12.59929885]
[1764663217629,102.6,126.67,126.66,0.66]
[1764663218222,11.93749829,126.69,126.66,0.66]
[1764663219025,35.66839605,126.7,126.66,0.66]
[1764663219217,36.25839605,126.7,126.66,8.55510886]
[1764663219413,4.04414648,126.69,126.67,0.68]
[1764663220105,11.9375678,126.69,126.67,0.68]
[1764663222698,20.6375678,126.69,126.67,0.68]
[1764663223202,20.6375678,126.69,126.66,7.89510886]
[1764663223406,4.04414648,126.68,126.66,8.59510886]
[1764663224105,4.04414648,126.68,126.67,0.7]
[1764663224806,4.04414648,126.68,126.66,7.89510886]
[1764663225122,4.04414648,126.68,126.66,0.7]
[1764663225297,4.04414648,126.68,126.67,0.7]
[1764663225708,4.04414648,126.68,126.65,16.59547057]
[1764663225922,4.04414648,126.68,126.66,0.7]
[1764663226123,4.63414648,126.67,126.63,17.008864]
[1764663226326,4.04414648,126.66,126.64,0.7]
[1764663227331,4.63414648,126.66,126.63,8.59702282]
[1764663227509,4.04414648,126.65,126.63,0.7]
[1764663229325,7.89452909,126.67,126.63,0.7]
[1764663229530,4.04414648,126.66,126.63,0.7]
[1764663230006,8.48452909,126.67,126.63,0.7]
[1764663230206,16.59763871,126.66,126.63,0.7]
[1764663230406,4.04414648,126.66,126.63,0.7]
[1764663231406,11.93975884,126.66,126.63,0.7]
[1764663231724,4.04414648,126.65,126.63,0.7]